Cogmind - Beta 10.2 @@@ ROGUE MODE // 2021.01.13 @ 21:04:32 Player: WayneKnight Result: Self-destructed Performance ------------- Evolutions (0) 0 Regions Visited (4) 800 Robots Destroyed (23) 115 Value Destroyed (421) 421 Prototype IDs (26) 520 Alien Tech Used (0) 0 Bonus (279) 279 TOTAL SCORE: 2135 Bonus ------- Follower Combat Kills 25 Aligned with FarCom 300 Friendly Fire -46 Cogmind --------- Core Integrity 7/250 Matter 257/300 Energy 184/265 System Corruption 1% Temperature Cool (0) Movement Core (650) Ox12 Location -9/Mines Parts ------- > --- POWER (1) -------- Improved Ion Engine > --- PROPULSION (2) --- (None) > --- UTILITY (2) ------ Large Storage Unit Large Storage Unit > --- WEAPON (2) ------- (None) > --- INVENTORY (16) --- Light Treads Light Treads Light Treads Armored Wheel Improved Flight Unit Medium Storage Unit Cloak of Protection Light Assault Rifle Grenade Launcher Mining Laser Makeshift Axe Longsword +1 Peak State ------------ > --- POWER ------------ Improved Ion Engine > --- PROPULSION ------- Light Treads Light Treads > --- UTILITY ---------- Large Storage Unit Large Storage Unit > --- WEAPON ----------- EM Pulse Gun Light Assault Rifle > --- INVENTORY -------- Improved Ion Engine Light Treads Light Treads Light Treads Armored Wheel Improved Flight Unit Medium Storage Unit Cloak of Protection Light Assault Rifle Light Assault Rifle Light Cannon Grenade Launcher Mining Laser Makeshift Axe Longsword +1 [Rating: 11] Favorites ----------- Power Improved Ion Engine Engine Improved Ion Engine Propulsion Light Treads Treads Light Treads Leg Aluminum Leg Flight Unit Improved Flight Unit Utility Large Storage Unit Device Heat Shielding Storage Large Storage Unit Weapon EM Pulse Gun Energy Gun EM Pulse Gun Ballistic Gun Light Assault Rifle Ballistic Cannon Light Cannon Launcher Grenade Launcher Build | -11 -10 -10 -10 -9 ------- Run | Scr Mat Min Exi Min Slots Evolved . | . . . . . Power . | . . . . . Propulsion . | . . . . . Utility . | . . . . . Weapon . | . . . . . Parts Attached 19 | 2 10 3 . 4 Power 2 | . 1 . . 1 Engine 2 | . 1 . . 1 Core . | . . . . . Reactor . | . . . . . Propulsion 6 | 2 4 . . . Treads 5 | 2 3 . . . Leg . | . . . . . Wheel . | . . . . . Hover . | . . . . . Flight 1 | . 1 . . . Utility 4 | . 4 . . . Device 1 | . 1 . . . Storage 3 | . 3 . . . Processor . | . . . . . Hackware . | . . . . . Protection . | . . . . . Artifact . | . . . . . Weapon 7 | . 1 3 . 3 Energy Gun 2 | . 1 1 . . Energy Cannon . | . . . . . Ballistic Gun 3 | . . 1 . 2 Ballistic Cannon 1 | . . . . 1 Launcher 1 | . . 1 . . Special Weapon . | . . . . . Impact Weapon . | . . . . . Slashing Weapon . | . . . . . Piercing Weapon . | . . . . . Special Melee Weapon . | . . . . . Unidentified Prototypes 1 | . 1 . . . Parts Lost 8 | . . 1 . 7 Power 1 | . . . . 1 Propulsion 2 | . . . . 2 Utility . | . . . . . Weapon 5 | . . 1 . 4 Highest Loss Streak 7 | . . 1 . 7 Average Slot Usage (%) 98 | . 97 100 100 98 Engine 13 | . 14 14 14 12 Treads 28 | . 28 28 28 28 Storage 26 | . 23 28 28 28 Energy Gun 19 | . 24 17 14 11 Ballistic Gun 8 | . 3 10 14 14 Naked Turns . | . . . . . Heaviest Build 43 | 12 43 43 42 42 Greatest Support 40 | 40 40 40 40 40 Greatest Overweight (x) 1 | . 1 1 1 1 Average Overweight (x) . | . . 1 1 1 Largest Inventory Capacity 16 | 6 16 16 16 16 Average Capacity 13 | 6 9 16 16 16 Most Carried 15 | 6 12 13 15 15 Average Carried 11 | 5 8 12 13 14 Final Capacity 16 | 6 16 16 16 16 Final Carried 15 | 5 12 13 15 12 Class Distribution -------------------- 100% | Mutant Dominant Class ---------------- Mutant | -10/Materials Mutant | -10/Mines Mutant | -10/Exiles Mutant | -9/Mines Resources | -11 -10 -10 -10 -9 ----------- Run | Scr Mat Min Exi Min Matter Collected 378 | 228 107 43 . . Remotely . | . . . . . Salvage Created 631 | 70 493 68 . . Parts 52 | . 38 14 . . Haulers Intercepted 2 | . 2 . . . Recyclers Shooed 1 | . 1 . . . Parts Field Recycled . | . . . . . Retrieved Matter . | . . . . . Parts Self-Destructed . | . . . . . Prevented . | . . . . . Kills | -11 -10 -10 -10 -9 ------- Run | Scr Mat Min Exi Min Combat Hostiles Destroyed 14 | . 7 6 . 1 Guns 7 | . 4 3 . . Cannons 1 | . . . . 1 AOE 6 | . 3 3 . . Classes Destroyed 8 | 1 6 . . 1 Worker 2 | . 2 . . . Builder 1 | . 1 . . . Hauler 2 | . 2 . . . Recycler 1 | 1 . . . . Watcher 3 | . 3 . . . Swarmer 8 | . 2 6 . . Grunt 5 | . 5 . . . Demolisher 1 | . . . . 1 Best Kill Streak 4 | 1 4 3 . 1 Combat Bots Only 3 | . 2 3 . 1 Max Kills in Single Turn 3 | 1 2 3 . 1 Gunslinging . | . . . . . Exploded 3 | . 1 3 . . Melee . | . . . . . Uniques/NPCs Destroyed . | . . . . . Combat | -11 -10 -10 -10 -9 -------- Run | Scr Mat Min Exi Min Damage Taken 1273 | . 346 109 . 818 Core 243 | . 86 15 . 142 Absorbed by Shields . | . . . . . Core Remaining (%) 100 | 100 . . . . Volleys Fired 58 | 8 28 10 . 12 Largest 2 | 2 2 2 . 2 Hottest 80 | 60 80 80 . 60 Shots Fired 113 | 16 56 19 . 22 Gun 107 | 16 56 18 . 17 Cannon 5 | . . . . 5 Launcher 1 | . . 1 . . Special . | . . . . . Kinetic 38 | 8 7 3 . 20 Thermal . | . . . . . Explosive 1 | . . 1 . . Electromagnetic 74 | 8 49 15 . 2 Robot Hit Streak 8 | 5 6 5 . 8 Robot Miss Streak 2 | 2 2 2 . 2 Penetration Max . | . . . . . Secondary Targets . | . . . . . Shots Hit Robots 66 | 9 31 11 . 15 Core Hits 35 | 3 22 6 . 4 Critical Hits 1 | . . . . 1 Critical Kills . | . . . . . Critical Parts Destroyed . | . . . . . Melee Attacks . | . . . . . Impact . | . . . . . Slashing . | . . . . . Piercing . | . . . . . Sneak Attacks . | . . . . . Combat Hostiles . | . . . . . Follow-up Attacks . | . . . . . Damage Inflicted 1277 | 100 717 290 . 170 Guns 753 | 100 442 121 . 90 Cannons 80 | . . . . 80 Explosions 421 | . 262 159 . . Melee . | . . . . . Ramming 23 | . 13 10 . . Kinetic 212 | 44 14 11 . 143 Thermal 262 | . 262 . . . Explosive 159 | . . 159 . . Electromagnetic 621 | 56 428 110 . 27 Impact . | . . . . . Slashing . | . . . . . Piercing . | . . . . . Highest Corruption 1 | . 1 1 1 1 Average Corruption 1 | . 1 1 1 1 Corruption Purged . | . . . . . Effects 13 | . . 9 2 2 Message Errors 4 | . . 3 . 1 Energy Discharges 3 | . . 3 . . Data Loss (minor) 4 | . . 2 2 . Targeting Errors 2 | . . 1 . 1 Overload Shots . | . . . . . Overflow Damage . | . . . . . Projectiles . | . . . . . Explosions . | . . . . . Melee . | . . . . . Knockbacks 1 | . . . . 1 Impact . | . . . . . Kinetic 1 | . . . . 1 Secondary . | . . . . . Self-Inflicted Damage 51 | . 35 16 . . Shots 2 | . 1 1 . . Rammed 4 | . 3 1 . . Targets Rammed 4 | . 3 1 . . Kicked . | . . . . . Crushed . | . . . . . Highest Temperature 204 | 40 204 91 . 32 Average Temperature 45 | 18 58 39 . 10 Received Heat Transfer 135 | . 120 15 . . Siege Activations . | . . . . . Robots Corrupted . | . . . . . Combat Hostiles . | . . . . . Parts Fried 1 | . 1 . . . Impact Corruptions . | . . . . . Robots Melted . | . . . . . Combat Hostiles . | . . . . . Parts Melted . | . . . . . Heat Transferred 200 | . 200 . . . Parts Sabotaged . | . . . . . Parts Stolen . | . . . . . Parts Stripped . | . . . . . Power Chain Reactions 3 | . 3 . . . Missiles Intercepted . | . . . . . Alert | -11 -10 -10 -10 -9 ------- Run | Scr Mat Min Exi Min Peak Influence 201 | 5 201 176 . 30 Initial 3 | . 3 . . . Average 58 | 2 82 42 . 2 Maximum Alert Level 1 | . 1 . . . Low Security (%) 99 | 100 99 100 . 100 Level 1 . | . . . . . Level 2 . | . . . . . Level 3 . | . . . . . Level 4 . | . . . . . Level 5 . | . . . . . High Security . | . . . . . Max Security . | . . . . . Squads Dispatched 2 | . 2 . . . Investigation 2 | . 2 . . . Extermination . | . . . . . Reinforcement . | . . . . . Assault . | . . . . . Garrison . | . . . . . Intercept . | . . . . . Construction Impeded . | . . . . . Haulers Reinforced . | . . . . . Stealth | -11 -10 -10 -10 -9 --------- Run | Scr Mat Min Exi Min Distress Signals . | . . . . . Communications Jammed . | . . . . . Distress Signals . | . . . . . Times Spotted 36 | . 15 8 . 13 Peak Tracking Total 10 | . 3 3 . 10 Tactical Retreats 5 | . 4 1 . . Traps | -11 -10 -10 -10 -9 ------- Run | Scr Mat Min Exi Min Traps Triggered 2 | . 2 . . . Indirectly . | . . . . . Trap Hack Attempts . | . . . . . Triggered . | . . . . . Disarmed . | . . . . . Reprogrammed . | . . . . . Reused . | . . . . . Traps Extracted . | . . . . . Installed . | . . . . . Triggered 1 | . 1 . . . Machines | -11 -10 -10 -10 -9 ---------- Run | Scr Mat Min Exi Min Machines Disabled 4 | . 3 1 . . Max in Single Turn 3 | . 3 1 . . Machines Sabotaged . | . . . . . Garrisons Compromised . | . . . . . Overloaded Fab Kills . | . . . . . Fab Network Shutdowns . | . . . . . Hacking | -11 -10 -10 -10 -9 --------- Run | Scr Mat Min Exi Min Machines Accessed 10 | . 8 . 2 . Terminals 7 | . 7 . . . Fabricators . | . . . . . Repair Stations . | . . . . . Recycling Units 1 | . 1 . . . Scanalyzers . | . . . . . Garrison Access . | . . . . . Total Hacks 26 | . 24 . 2 . Successful 20 | . 18 . 2 . Failed 6 | . 6 . . . Catastrophic . | . . . . . Database Lockouts . | . . . . . Manual 17 | . 16 . 1 . Terminals 23 | . 23 . . . Fabricators . | . . . . . Repair Stations . | . . . . . Recycling Units 1 | . 1 . . . Scanalyzers . | . . . . . Garrison Access . | . . . . . Terminal Hacks 12 | . 10 . 2 . Record 1 | . . . 1 . Robot Analysis 2 | . 2 . . . Prototype ID Bank 3 | . 3 . . . Locate Traps 3 | . 3 . . . Hauler Manifests 1 | . 1 . . . Zone Layout 1 | . 1 . . . EX-Prototype ID Bank 1 | . . . 1 . Fabricator Hacks . | . . . . . Repair Station Hacks . | . . . . . Recycling Unit Hacks . | . . . . . Scanalyzer . | . . . . . Garrison Access Hacks . | . . . . . Unauthorized Hacks 8 | . 8 . . . Terminals 7 | . 7 . . . Track 3 | . 3 . . . Botnet 3 | . 3 . . . Operators 1 | . 1 . . . Fabricators . | . . . . . Repair Stations . | . . . . . Recycling Units 1 | . 1 . . . Tunnel 1 | . 1 . . . Scanalyzers . | . . . . . Garrison Access . | . . . . . Data Cores Recovered . | . . . . . Used . | . . . . . Hacking Detections 5 | . 5 . . . Full Trace Events . | . . . . . Feedback Events . | . . . . . Feedback Blocked . | . . . . . Robot Schematics Acquired . | . . . . . Robots Built . | . . . . . Matter . | . . . . . Time . | . . . . . Total Robot Build Rating . | . . . . . Part Schematics Acquired . | . . . . . Parts Built . | . . . . . Matter . | . . . . . Time . | . . . . . Total Part Build Rating . | . . . . . Parts Repaired . | . . . . . Time . | . . . . . Parts Recycled . | . . . . . Recycled Matter . | . . . . . Retrieved Matter . | . . . . . Retrieved Components . | . . . . . Parts Scanalyzed . | . . . . . Part Schematics Acquired . | . . . . . Parts Damaged . | . . . . . Bothacking | -11 -10 -10 -10 -9 ------------ Run | Scr Mat Min Exi Min Used RIF Installer . | . . . . . Robots Hacked . | . . . . . Non-combat . | . . . . . Combat . | . . . . . Robot Hacks Applied . | . . . . . Relay Couplers Released . | . . . . . Robots Rewired . | . . . . . Allies Hacked . | . . . . . Hacks Repelled . | . . . . . Allies | -11 -10 -10 -10 -9 -------- Run | Scr Mat Min Exi Min Total Allies 4 | . . 4 . . Largest Group 3 | . . 3 3 2 Highest-Rated Group 40 | . . 40 40 24 Highest-Rated Ally 31 | . . 31 16 16 Total Orders . | . . . . . Ally Attacks 23 | . . 6 . 17 Total Damage 184 | . . 106 . 78 Kills 1 | . . 1 . . Allies Corrupted . | . . . . . Allies Melted . | . . . . . Intel | -11 -10 -10 -10 -9 ------- Run | Scr Mat Min Exi Min Robot Analysis Total 2 | . 2 . . . Derelict Logs Recovered 1 | . . 1 . . Drone Launches . | . . . . . Drone Recoveries . | . . . . . Exploration | -11 -10 -10 -10 -9 ------------- Run | Scr Mat Min Exi Min Turns Passed 3545 | 55 1290 1100 935 165 Spaces Moved 1872 | 22 705 555 519 71 Core . | . . . . . Treads 1859 | 9 705 555 519 71 Legs 13 | 13 . . . . Wheels . | . . . . . Hover . | . . . . . Flight . | . . . . . Fastest Speed 120 | 120 160 180 180 180 Average Speed 172 | 136 161 180 180 180 Slowest Speed 180 | 160 180 180 180 180 Overloaded Moves . | . . . . . Propulsion Burnouts . | . . . . . Robots Hopped . | . . . . . Cave-ins Triggered . | . . . . . Exploration Rate (%) 62 | 3 96 100 89 25 Regions Visited 4 Branch Regions 3 Pre-discovered Areas 4 | . 1 2 1 . Known Exits Taken . | . . . . . Unknown Exits Taken 4 | 1 1 1 1 . Scrap Searched 1 | . . 1 . . Spaces Dug . | . . . . . Terrain Destroyed 14 | . 5 9 . . Melee . | . . . . . Projectile . | . . . . . AOE 14 | . 5 9 . . Terrain Rammed . | . . . . . Walls Destroyed . | . . . . . Machines Disabled . | . . . . . Actions | -11 -10 -10 -10 -9 --------- Run | Scr Mat Min Exi Min Total 2075 | 32 799 636 520 88 Wait 102 | . 35 66 . 1 Move 1868 | 21 704 554 518 71 Hop . | . . . . . Pick Up 13 | . 9 2 2 . Fast Attach 3 | . 3 . . . Attach 5 | . 1 1 . 3 Detach 2 | . 2 . . . Swap 11 | 2 6 2 . 1 Drop 9 | 1 8 . . . Fire 58 | 8 28 10 . 12 Melee . | . . . . . Ram . | . . . . . Kick . | . . . . . Crush 4 | . 3 1 . . Escape Stasis . | . . . . . Rewire . | . . . . . Trap . | . . . . . Miscellaneous . | . . . . . Route ------- -11/Scrapyard -10/Materials (discovered 5 exits: [*Mat x3] / [*Min x2]) -10/Mines (discovered 3 exits: [*Mat x2] / *Exi) -10/Exiles -9/Mines History --------- Turn | Location | Event 18 | -11/Scrapyard | Discovered new exit (range 3) 56 | -11/Scrapyard | Entered Materials 294 | -10/Materials | Discovered new exit (range 16) 306 | -10/Materials | Build established: Mutant 697 | -10/Materials | Discovered new exit (range 16) 806 | -10/Materials | Discovered new exit (range 6) 872 | -10/Materials | Discovered new exit (range 7) 967 | -10/Materials | Discovered new exit (range 6) 1346 | -10/Materials | Entered Mines 1349 | -10/Mines | Escorted by a lone wolf Derelict 1369 | -10/Mines | Learned location of Storage (-8) 1383 | -10/Mines | Met a Derelict bent on vengeance 1791 | -10/Mines | Discovered new exit (range 6) 1804 | -10/Mines | Deemed a non-threat by the Exiles lab entrance 2146 | -10/Mines | Discovered new exit (range 5) 2175 | -10/Mines | Assisted by bots powering up and referring to "LRC-V3" 2281 | -10/Mines | A weapon hastily lodged in a ceiling crevice suddenly fell to the ground 2437 | -10/Mines | Discovered new exit (range 5) 2446 | -10/Mines | Entered Exiles 2446 | -10/Exiles | Accompanied by 3 allies 2490 | -10/Exiles | Met 8R-AWN 2520 | -10/Exiles | Met EX-HEX 2616 | -10/Exiles | Met EX-DEC 2651 | -10/Exiles | Visited The Gauntlet 2869 | -10/Exiles | Learned location of Zion (-6) 3105 | -10/Exiles | Met EX-BIN 3130 | -10/Exiles | Aligned with FarCom system 3132 | -10/Exiles | Given EX-Vault access code 3174 | -10/Exiles | Opened EX-Vault 3190 | -10/Exiles | Found Cloak of Protection 3202 | -10/Exiles | Found Longsword +1 3239 | -10/Exiles | Warned to stay clear of 0b10 Research branches 3356 | -10/Exiles | Discovered new exit (range 14) 3381 | -10/Exiles | Stole two prototypes: Cloak of Protection, Longsword +1 3381 | -10/Exiles | Entered Mines 3381 | -9/Mines | Accompanied by 2 allies 3492 | -9/Mines | Assembled infested the area 3524 | -9/Mines | Core integrity fell below 50% 3535 | -9/Mines | Core integrity fell below 20% 3546 | -9/Mines | Self-destructed Last Messages --------------- 03519_ as-90382 destroyed. 03519_ as-06854 destroyed. 03520_ The unstable cave ceiling collapses. 03521_ Trooper 1b destroyed. 03521_ as-31487 destroyed. 03524_ Lgt. Assault Rifle destroyed. 03528_ D-53 Grenadier destroyed. 03533_ D-53 Grenadier suffers critical hit. 03537_ System corrupted: Lgt. Cannon targeting data glitched. 03537_ D-53 Grenadier knocked back. 03538_ The unstable cave ceiling collapses. 03540_ Lgt. Treads destroyed. 03540_ Lgt. Cannon destroyed. 03540_ Lgt. Treads destroyed. 03541_ The unstable cave ceiling collapses. 03543_ U-05 Engineer lays Concrete. 03544_ U-05 Engineer destroyed. 03544_ R-06 Scavenger collects Welding Torch. 03546_ The unstable cave ceiling collapses. 03546_ Lgt. Assault Rifle destroyed. Map ----- +----------------------------------------------------+ | | | | | | | ??????????????????????????????????? | | ??????????????????????????????????? | | ??????????????????????????????????? | | #####?????????????????????????????? | | #?????????????????????????????? | | #?????????????????????????????? | | ## #?????????????????????????????? | | ?# #?????????????????????????????? | | ?# #????????????????????#????????? | | ?# #???????????????????? ????????? | | ?# #???????????????????? ????????? | | ?# #???????????????????? ??? #???? | | ?# #???????####????????? """ #???? | | ?# #??????## ##???????? """ #???? | | ?# #??????# ##?????## """ #???? | | ?# ######## ##???## ##??? | | ?# #???# #??? | | ?# ##??# r #??? | | ?##### ######## ####!% #??? | | ?????# ######## ## * #??? | | ?????# #??? | | ??? ######### # #??? | | ?????# #???????## @ #??? | | ????? ????????## % #??? | | ????? ?????????# #??? | | ????? ????????# #?? | | ????? ????????# d #?? | | ????? ????????# ##?? | | ????? ??????? ####??? | | ????? ????? ##?????? | | ????? ?????##### %a###??????? | | ????? ?????????# #????????? | | ????????????????? #????????? | | ????????????????## #????????? | | ?????????????????## % % #?????????? | | ?????????????????? ??????????? | | ????????????????????# t ??????????? | | ????????????????????# ??????????? | | ????????????????????# ???????????? | | ????????????????????? ???????????? | | ??????????????????????????????????? | | ??????????????????????????????????? | | ??????????????????????????????????? | | ??????????????????????????????????? | | ??????????????????????????????????? | | ??????????????????????????????????? | | ??????????????????????????????????? | +----------------------------------------------------+ Best States ------------- Heat Dissipation 25 Energy Generation 12 Energy Capacity 265 Matter Stores 300 Matter Capacity 300 Sight Range 16 Terrain Scan Density 10 Heat Shielding 75 Evasion (%) 40 Recoil Reduction 2 Item Schematics ----------------- None Robot Schematics ------------------ None Fabricated ------------ Nothing Alien Tech Used ----------------- None Achievements -------------- None Challenges ------------ None Game ------ Seed TargetDisposableMachine Manual? 0 Play Time 00:15:25 Cumulative 192.0 hours Start 2021.01.13 @ 18:30:28 End 2021.01.13 @ 21:04:32 Sessions 1 Manual Loads 0 Difficulty Rogue Special Mode None Game No. 140 Rogue 140 Adventurer 0 Explorer 0 Win Type - Total 4 Types 4/0/0/0/0/0/0/0/0 Lore% 48 Gallery% 61 Achievement% 45 Wizard Run 0 Options --------- ASCII 1 Keyboard 1 Movement Arrows Keybinds 0 Fullscreen 1 Font 24/Proggy Map View 76x50 Tactical HUD 1 Map Filters NONE Filters NONE Steam 1 RUN: 8424d3d3-b2a5-4429-a5c9-3312184d78f3